Cogmind - Beta 13 @@@ ROGUE MODE // 2024.05.31 @ 20:52:39 Player: archydragon Result: Destroyed by as-95985 with Assembled Rifle Performance ------------- Evolutions (1) 500 Regions Visited (3) 600 Robots Destroyed (7) 35 Value Destroyed (146) 146 Prototype IDs (1) 20 Alien Tech Used (0) 0 Bonus (39) 39 TOTAL SCORE: 1340 Bonus ------- Follower Combat Kills 39 Cogmind --------- Core Integrity 0/400 Matter 280/300 Energy 80/250 System Corruption 4% Temperature Cool (0) Movement Flying (275) Ox3 Location -9/Mines Parts ------- > --- POWER (1) -------- Ion Engine > --- PROPULSION (3) --- VTOL Module > --- UTILITY (3) ------ Medium Storage Unit > --- WEAPON (2) ------- (None) > --- INVENTORY (10) --- Light Ion Engine Flight Unit EM Pulse Gun Assault Rifle Heavy Assault Rifle Peak State ------------ > --- POWER ------------ Ion Engine > --- PROPULSION ------- Flight Unit Flight Unit VTOL Module > --- UTILITY ---------- Medium Storage Unit Weight Redist. System Improved Targeting Computer > --- WEAPON ----------- Improved Light Cannon Improved Light Cannon > --- INVENTORY -------- Ion Engine Light Ion Engine EM Pulse Gun Assault Rifle Improved Light Cannon Datajack [Rating: 14] Favorites ----------- Power Ion Engine Engine Ion Engine Propulsion Flight Unit Wheel Compact Wheel Flight Unit Flight Unit Utility Medium Storage Unit Device Weight Redist. System Storage Medium Storage Unit Processor Improved Targeting Computer Weapon Datajack Energy Gun EM Pulse Gun Ballistic Cannon Improved Light Cannon Special Melee Weapon Datajack Build | -11 -10 -9 -9 ------- Run | Yrd Mat Mat Min Slots Evolved 2 | . . 2 . Power . | . . . . Propulsion 1 | . . 1 . Utility 1 | . . 1 . Weapon . | . . . . Parts Attached 29 | 4 8 14 3 Power 4 | 1 1 1 1 Engine 4 | 1 1 1 1 Core . | . . . . Reactor . | . . . . Propulsion 9 | 2 2 3 2 Treads . | . . . . Leg . | . . . . Wheel 3 | 2 . . 1 Hover . | . . . . Flight 6 | . 2 3 1 Utility 6 | 1 2 3 . Device 3 | . 1 2 . Storage 2 | 1 1 . . Processor 1 | . . 1 . Hackware . | . . . . Protection . | . . . . Artifact . | . . . . Weapon 10 | . 3 7 . Energy Gun 2 | . 2 . . Energy Cannon . | . . . . Ballistic Gun . | . . . . Ballistic Cannon 4 | . . 4 . Launcher . | . . . . Special Weapon . | . . . . Impact Weapon . | . . . . Slashing Weapon . | . . . . Piercing Weapon . | . . . . Special Melee Weapon 4 | . 1 3 . Unidentified Prototypes 1 | . . 1 . Parts Lost 7 | . . . 7 Power 1 | . . . 1 Propulsion 3 | . . . 3 Utility 1 | . . . 1 Weapon 2 | . . . 2 Highest Loss Streak 7 | . . . 7 To Critical Strikes . | . . . . Average Slot Usage (%) 92 | . 89 91 94 Engine 11 | . 12 10 11 Wheel 5 | . 19 . . Flight 23 | . 8 30 31 Device 13 | . 6 14 20 Storage 11 | . 14 11 11 Processor 1 | . . 4 . Energy Gun 7 | . 18 3 . Ballistic Cannon 7 | . . 9 10 Special Melee Weapon 8 | . 8 8 9 Naked Turns . | . . . . Heaviest Build 26 | 10 19 26 21 Greatest Support 32 | 26 32 18 18 Greatest Overweight (x) 4 | . 1 1 4 Average Overweight (x) . | . . 1 1 Largest Inventory Capacity 10 | 8 10 10 10 Average Capacity 9 | 7 9 10 10 Most Carried 9 | 5 7 8 9 Average Carried 6 | 3 4 6 8 Final Capacity 10 | 8 10 10 10 Final Carried 7 | 4 6 7 5 Class Distribution -------------------- 100% | Mutant Dominant Class ---------------- Mutant | -10/Materials Mutant | -9/Materials Mutant | -9/Mines Resources | -11 -10 -9 -9 ----------- Run | Yrd Mat Mat Min Matter Collected 539 | 223 67 204 45 Remotely . | . . . . Salvage Created 107 | . 47 60 . Parts 9 | . 4 5 . Haulers Intercepted . | . . . . Recyclers Shooed . | . . . . Parts Field Recycled . | . . . . Retrieved Matter . | . . . . Parts Self-Destructed . | . . . . Prevented . | . . . . Kills | -11 -10 -9 -9 ------- Run | Yrd Mat Mat Min Combat Hostiles Destroyed 5 | . 3 2 . Guns 2 | . 2 . . Cannons 2 | . . 2 . AOE 1 | . 1 . . Classes Destroyed 5 | . 1 4 . Worker 1 | . . 1 . Watcher 1 | . . 1 . Swarmer 3 | . 3 . . Grunt 1 | . . 1 . Sentry 1 | . . 1 . Best Kill Streak 3 | . 3 3 . Combat Bots Only 3 | . 3 1 . Max Kills in Single Turn 1 | . 1 1 . Gunslinging . | . . . . Exploded 1 | . 1 . . Melee . | . . . . Uniques/NPCs Destroyed . | . . . . Combat | -11 -10 -9 -9 -------- Run | Yrd Mat Mat Min Hostile Shots Fired 122 | . 25 21 76 Missed 39 | . 9 4 26 Damage Taken 1182 | . 129 235 818 Core 434 | . 30 56 348 Absorbed by Shields . | . . . . Regen/Repaired (Parts) 61 | . 14 47 . Core Remaining (%) 94 | 100 88 . . Volleys Fired 27 | . 9 15 3 Largest 2 | . 2 2 1 Hottest 80 | . 80 78 39 Shots Fired 48 | . 18 27 3 Gun 21 | . 18 3 . Cannon 27 | . . 24 3 Launcher . | . . . . Special . | . . . . Kinetic 27 | . . 24 3 Thermal . | . . . . Explosive . | . . . . Electromagnetic 21 | . 18 3 . Robot Hit Streak 5 | . 3 5 1 Robot Miss Streak 5 | . 4 5 1 Penetration Max . | . . . . Secondary Targets . | . . . . Shots Hit Robots 30 | . 8 21 1 Core Hits 7 | . 3 4 . Critical Kills . | . . . . Critical Parts Destroyed . | . . . . Critical Strikes 1 | . . 1 . Blast 1 | . . 1 . Melee Attacks 6 | . 2 4 . Impact . | . . . . Slashing . | . . . . Piercing . | . . . . Sneak Attacks 6 | . 2 4 . Combat Hostiles . | . . . . Follow-up Attacks . | . . . . Damage Inflicted 476 | . 93 342 41 Guns 84 | . 69 15 . Cannons 363 | . . 322 41 Explosions 24 | . 24 . . Melee . | . . . . Ramming 5 | . . 5 . Kinetic 363 | . . 322 41 Thermal 24 | . 24 . . Explosive . | . . . . Electromagnetic 84 | . 69 15 . Impact . | . . . . Slashing . | . . . . Piercing . | . . . . Highest Corruption 4 | . . . 4 Average Corruption 3 | . . . 3 Corruption Purged . | . . . . Corruption Blocked . | . . . . Overload Shots . | . . . . Overflow Damage . | . . . . Projectiles . | . . . . Explosions . | . . . . Melee . | . . . . Knockbacks 3 | . . 3 . Impact . | . . . . Kinetic 3 | . . 3 . Secondary . | . . . . Self-Inflicted Damage 2 | . . 2 . Shots . | . . . . Rammed 1 | . . 1 . Targets Rammed 1 | . . 1 . Kicked . | . . . . Crushed . | . . . . Highest Temperature 264 | . 182 264 1 Average Temperature 102 | . 99 110 1 Received Heat Transfer 224 | . 12 132 80 Siege Activations . | . . . . Robots Corrupted . | . . . . Combat Hostiles . | . . . . Parts Fried . | . . . . Impact Corruptions . | . . . . Robots Melted . | . . . . Combat Hostiles . | . . . . Parts Melted 1 | . 1 . . Heat Transferred 50 | . 50 . . Parts Sabotaged . | . . . . Parts Stolen . | . . . . Parts Stripped . | . . . . Power Chain Reactions 1 | . 1 . . Alert | -11 -10 -9 -9 ------- Run | Yrd Mat Mat Min Peak Influence 207 | . 134 207 65 Initial 56 | . . 56 2 Average 86 | . 115 121 16 Maximum Alert Level 1 | . . 1 . Low Security (%) 97 | 100 100 93 100 Level 1 2 | . . 6 . Level 2 . | . . . . Level 3 . | . . . . Level 4 . | . . . . Level 5 . | . . . . High Security . | . . . . Max Security . | . . . . Squads Dispatched 7 | . 2 4 1 Investigation 2 | . 1 1 . Extermination . | . . . . Reinforcement 4 | . 1 3 . Assault 1 | . . . 1 Garrison . | . . . . Intercept . | . . . . Searches Triggered . | . . . . Construction Impeded . | . . . . Haulers Reinforced . | . . . . Active Scanning Responses . | . . . . Cargo Convoy Interrupts . | . . . . Stealth | -11 -10 -9 -9 --------- Run | Yrd Mat Mat Min Distress Signals 5 | . 2 3 . Communications Jammed . | . . . . Distress Signals . | . . . . Times Spotted 37 | . 6 6 25 Peak Tracking Total 19 | . 5 2 19 Tactical Retreats 3 | . 1 . 2 Traps | -11 -10 -9 -9 ------- Run | Yrd Mat Mat Min Traps Triggered 1 | . 1 . . Indirectly . | . . . . Trap Hack Attempts . | . . . . Triggered . | . . . . Disarmed . | . . . . Reprogrammed . | . . . . Reused . | . . . . Traps Extracted . | . . . . Installed . | . . . . Triggered . | . . . . Machines | -11 -10 -9 -9 ---------- Run | Yrd Mat Mat Min Machines Disabled 2 | . 1 1 . Max in Single Turn 1 | . 1 1 . Machines Repaired . | . . . . Machines Dismantled . | . . . . Machines Sabotaged . | . . . . Overloaded Fab Kills . | . . . . Hacking | -11 -10 -9 -9 --------- Run | Yrd Mat Mat Min Machines Accessed 7 | . 5 2 . Terminals 5 | . 4 1 . Fabricators . | . . . . Repair Stations 2 | . 1 1 . Recycling Units . | . . . . Scanalyzers . | . . . . Garrison Access . | . . . . Total Hacks 21 | . 13 8 . Successful 15 | . 8 7 . Failed 6 | . 5 1 . Catastrophic . | . . . . Database Lockouts . | . . . . Manual . | . . . . Terminals 14 | . 11 3 . Fabricators . | . . . . Repair Stations 7 | . 2 5 . Recycling Units . | . . . . Scanalyzers . | . . . . Garrison Access . | . . . . Terminal Hacks 9 | . 6 3 . Record 5 | . 2 3 . Emergency Access Points 1 | . 1 . . Locate Traps 1 | . 1 . . Hauler Manifests 1 | . 1 . . Zone Layout 1 | . 1 . . Fabricator Hacks . | . . . . Repair Station Hacks 6 | . 2 4 . Scan Component 3 | . 1 2 . Repair 3 | . 1 2 . Recycling Unit Hacks . | . . . . Scanalyzer . | . . . . Garrison Access Hacks . | . . . . Unauthorized Hacks . | . . . . Terminals . | . . . . Fabricators . | . . . . Repair Stations . | . . . . Recycling Units . | . . . . Scanalyzers . | . . . . Garrison Access . | . . . . Data Cores Recovered . | . . . . Used . | . . . . Hacking Detections 5 | . 4 1 . Full Trace Events 2 | . 2 . . Feedback Events . | . . . . Feedback Blocked . | . . . . Robot Schematics Acquired . | . . . . Robots Built . | . . . . Authchips . | . . . . Time . | . . . . Total Robot Build Rating . | . . . . Part Schematics Acquired . | . . . . Parts Built . | . . . . Authchips . | . . . . Time . | . . . . Total Part Build Rating . | . . . . Parts Repaired 3 | . 1 2 . Time 78 | . 26 52 . Parts Recycled . | . . . . Recycled Matter . | . . . . Retrieved Matter . | . . . . Retrieved Components . | . . . . Parts Scanalyzed . | . . . . Part Schematics Acquired . | . . . . Parts Damaged . | . . . . Bothacking | -11 -10 -9 -9 ------------ Run | Yrd Mat Mat Min Used RIF Installer . | . . . . Robots Hacked 4 | . 1 3 . Non-combat 4 | . 1 3 . Combat . | . . . . Robot Hacks Applied 5 | . 1 4 . no_distress 3 | . 1 2 . check_alert 2 | . . 2 . Relay Couplers Released . | . . . . Fabnet Peak Effective % . | . . . . Robots Rewired . | . . . . Allies Hacked . | . . . . Hacks Repelled . | . . . . Allies | -11 -10 -9 -9 -------- Run | Yrd Mat Mat Min Total Allies 1 | . . . 1 Largest Group 1 | . . . 1 Highest-Rated Group 31 | . . . 31 Highest-Rated Ally 31 | . . . 31 Total Orders . | . . . . Ally Attacks 7 | . . . 7 Total Damage 147 | . . . 147 Kills 3 | . . . 3 Allies Corrupted . | . . . . Allies Melted . | . . . . Intel | -11 -10 -9 -9 ------- Run | Yrd Mat Mat Min Robot Analysis Total . | . . . . Derelict Logs Recovered 1 | . . . 1 Drone Launches . | . . . . Drone Recoveries . | . . . . Exploration | -11 -10 -9 -9 ------------- Run | Yrd Mat Mat Min Turns Passed 1095 | 42 308 448 297 Spaces Moved 788 | 39 241 270 238 Core 18 | 14 . . 4 Treads . | . . . . Legs . | . . . . Wheels 220 | 25 194 . 1 Hover . | . . . . Flight 550 | . 47 270 233 Fastest Speed 50 | 50 90 112 95 Average Speed 106 | 76 95 114 115 Slowest Speed 250 | 100 120 117 250 Overloaded Moves . | . . . . Propulsion Burnouts . | . . . . Robots Hopped . | . . . . Cave-ins Triggered . | . . . . Exploration Rate (%) 28 | 3 41 26 45 Regions Visited 3 Branch Regions 1 Pre-discovered Areas . | . . . . Known Exits Taken . | . . . . Unknown Exits Taken 3 | 1 1 1 . Scrap Searched . | . . . . Spaces Dug . | . . . . Terrain Destroyed 4 | . 3 1 . Melee . | . . . . Projectile 1 | . . 1 . AOE 3 | . 3 . . Terrain Rammed . | . . . . Walls Destroyed . | . . . . Machines Disabled . | . . . . Actions | -11 -10 -9 -9 --------- Run | Yrd Mat Mat Min Total 987 | 50 301 378 258 Wait 96 | . 26 65 5 Move 785 | 38 240 269 238 Hop . | . . . . Pick Up 31 | 8 11 8 4 Fast Attach . | . . . . Attach 17 | 4 5 6 2 Detach . | . . . . Swap 12 | . 3 8 1 Drop 12 | . 5 2 5 Fire 27 | . 9 15 3 Melee 6 | . 2 4 . Ram 1 | . . 1 . Kick . | . . . . Crush . | . . . . Escape Stasis . | . . . . Rewire . | . . . . Trap . | . . . . Miscellaneous . | . . . . Route ------- -11/Scrapyard -10/Materials -9/Materials -9/Mines History --------- Turn | Location | Event 26 | -11/Scrapyard | Discovered new exit (range 16) 43 | -11/Scrapyard | Entered Materials 207 | -10/Materials | Discovered new exit (range 12) 303 | -10/Materials | Repaired Ion Engine 325 | -10/Materials | Build established: Mutant 351 | -10/Materials | Entered another Materials area 351 | -9/Materials | Evolved 2 slots: Propulsion x1, Utility x1 434 | -9/Materials | Repaired Flight Unit 462 | -9/Materials | Repaired Ion Engine 773 | -9/Materials | Discovered new exit (range 16) 799 | -9/Materials | Entered Mines 800 | -9/Mines | Met a Derelict testing a Signal Generator 804 | -9/Mines | Found Signal Generator 849 | -9/Mines | Learned 2 Materials zone layouts 907 | -9/Mines | Received a Rocket Launcher from a helpful Derelict 1045 | -9/Mines | Assembled infested the area 1082 | -9/Mines | Core integrity fell below 50% 1090 | -9/Mines | Core integrity fell below 20% 1096 | -9/Mines | Destroyed by as-95985 with Assembled Rifle Last Messages --------------- 01061_ Flight Unit destroyed. 01061_ Datajack destroyed. 01063_ Dropped Weight Redist. System. 01064_ Dropped Rocket Launcher. 01064_ Dropped Imp. Light Cannon. 01068_ U-05 Engineer destroyed. 01076_ Knocked back. 01079_ Seismic Detector destroyed. 01079_ System corrupted by crushing effect (+2). 01079_ Knocked back. 01080_ Flight Unit destroyed. 01081_ Acquired Wheel. 01081_ Imp. Light Cannon destroyed. 01083_ Knocked back. 01084_ Acquired 15 matter. 01085_ Wheel destroyed. 01085_ System corrupted by crushing effect (+2). 01091_ as-95312 destroyed. 01092_ Ion Engine destroyed. 01093_ Knocked back. Map ----- +----------------------------------------------------+ | ??????####??# #####?????????## ##???# #?? | | ?????## ##?# ############### ##??# #?? | | ?????# ### ## #### #?? | | ?????# ############### ### ## #?? | | ????## #?????????????# #?###### #?? | | ???## #?????????????# #??????## & ##? | | #??# #########??????# #???????## ##[ #? | | #?# #### ##?????# #????????### ###%=[ ## | | ### ###?# """ #?????# #??????##### #?#**% # | | ## ###### """ #?????# #??????# #?#= = # | | """ ##????# #??????# #####?##* # | | ###??# ######## #??????# ## | | ########## ##?# #??????# ##? | | #??????????# ## ######## #######????# ##? | | ??????????# #### ##????# #?## ###### ## | | ?????????# #??#### ###### ### ## | | ?????????# #?????## | | ?????????## ##??????# | | ??????????## ##???????# ### | | ???????????# #????????## ##?# ##### ## ## | | ???????????# ??????????#######??## ##???##### ## | | ??????????? ????????????????????# ##????????# | | ??????????? #????????????????????# #?????????##### | | ??????????# ?????????????????????# #?????????????? | | ??????????# ????????????########## #?????????????? | | ??????????##???????????##@ #?????????????? | | ???????????????#???##### u #?????????????? | | ???????????????# ### a ########?????????????? | | ???????????????# a ####????????????????????? | | ???????????????#### a%##???????????????????????? | | ??????????????????#aaaa##????????????????????????? | | ??????????????????# * ##?????????????????????????? | | ??????????????????#a!a#??????????????????????????? | | ?????????????????## #??????????????????????????? | | ?????????????????# #??????????????????????????? | | ?????????????????# ##??????????????????????????? | | ?????????????????# #???????????????????????????? | | ?????????????????#% %#???????????????????????????? | | ?????????????????# ] #???????????????????????????? | | ?????????????????##!]##??????????????????????????? | | ?????????????????##] #??????????????????????????? | | ?????????????????# #??????????????????????????? | | ???????????????# ##??????????????????????????? | | ????????????? ##???????????????????????????? | | ??????????%= ##????????????????????????????? | | ?????????## ####??????????????????????????????? | | ??????????# " ??????????????????????????????????? | | ??????????# ???????????????????????????????????? | | ?????????# ????????????????????????????????????? | | ????????# ?????????????????????????????????????? | +----------------------------------------------------+ Best States ------------- Heat Dissipation 28 Energy Generation 10 Energy Capacity 250 Matter Stores 300 Matter Capacity 300 Sight Range 16 Terrain Scan Density 10 Additional Mass Support 6 Evasion (%) 50 Item Schematics ----------------- None Robot Schematics ------------------ None Fabricated ------------ Nothing Alien Tech Used ----------------- None Achievements -------------- None Challenges ------------ None Game ------ Seed PhaseMagneticDoomcannon Manual? 0 Play Time 00:19:14 Cumulative 13.4 hours Start 2024.05.31 @ 20:34:31 End 2024.05.31 @ 20:52:39 Sessions 1 Manual Loads 0 Difficulty Rogue Special Mode None Game No. 26 Rogue 26 Adventurer 0 Explorer 0 Win Type - Total 0 Types 0/0/0/0/0/0/0/0/0 Lore% 7 Gallery% 17 Achievement% 14 Wizard Run 0 Options --------- Layout 1 ASCII 0 Keyboard 0 Movement Numpad Keybinds 0 Fullscreen 2 Font 32/Tamsyn Map View 77x35 Zoom Use 0% Tactical HUD 1 Map Filters NONE Filters NONE Steam 1 RUN: fb07ee2f-6a53-4801-80bc-333c4276cefe